Cogmind - Beta 14 *** ADVENTURER MODE // 2024.09.14 @ 12:15:32 // Winter2019/RPGLIKE Player: Gallgagger Result: Destroyed by Executioner with Helical Railgun Performance ------------- Evolutions (8) 4000 Regions Visited (21) 4200 Robots Destroyed (539) 2695 Value Destroyed (27937) 27937 Prototype IDs (39) 780 Alien Tech Used (2) 400 Bonus (19160) 19160 TOTAL SCORE: 59172 Bonus ------- Triggered High Security 500 High Alert Combat Kills 7219 Follower Combat Kills 3474 Network Hubs Disabled 200 Met Zhirov 300 Built Enhanced Grunts 300 A7 Reached Mainframe 300 Met R17 at Cetus 500 Used Core Reset Matrix 3000 Met R17 at Research 2000 Scanned by Researcher 500 Met Sigix 2000 Friendly Fire -1133 Cogmind --------- Core Integrity 0/2300 Matter 328/500 Energy 590/590 System Corruption 16% Temperature Cool (0) Movement Immobile (Siege) Location -2/Research Parts ------- > --- POWER (3) -------- Neutrino Core Particle Reactor Compact Particle Reactor > --- PROPULSION (6) --- Tri-treads (fused) Tri-treads (fused) > --- UTILITY (9) ------ Siege Articulator Advanced Target Analyzer Expert System (Quarantine Guard) Advanced Force Field Sensor Drone Bay (19/20) > --- WEAPON (3) ------- Siege Cannon > --- INVENTORY (4) ---- Subatomic Replicator CPS Tube (2) Sigix Containment Pod Peak State ------------ > --- POWER ------------ Neutrino Core Particle Reactor Compact Particle Reactor > --- PROPULSION ------- Tri-treads Tri-treads > --- UTILITY ---------- Siege Articulator Advanced Target Analyzer Core Analyzer Expert System Centrium Medium Armor Plating Centrium Medium Armor Plating Advanced Force Field High-powered Tractor Beam Sensor Drone Bay > --- WEAPON ----------- Siege Cannon > --- INVENTORY -------- Subatomic Replicator CPS Tube Sigix Containment Pod [Rating: 141] Favorites ----------- Power Hybrid Fission Core Engine Ion Engine Power Core Hybrid Fission Core Reactor Compact Particle Reactor Propulsion Tri-treads Treads Tri-treads Wheel Compact Wheel Flight Unit Flightbrick Utility Sensor Drone Bay Device Sensor Drone Bay Processor Core Analyzer Hackware Hacking Suite Protection Makeshift Medium Armor Plating Weapon Siege Cannon Energy Gun Medium Laser Ballistic Gun Subdweller Machine Gun Ballistic Cannon Siege Cannon Special Weapon CPS Tube Build | -11 -10 -10 -10 -8 -7 -7 -7 -7 -5 -5 -5 -5 -4 -4 -4 -4 -4 -4 -3 -3 -2 ------- Run | Yrd Mat Min Sub Mat Fac Sto Rec Scr Fac Upp Upp Zhi Pro Fac Ext Cet Arc Hub Res Qua Res Slots Evolved 17 | 4 . 1 2 2 . 1 . 3 . . 2 . . . . . . . 1 1 . Power 2 | 1 . . . . . . . . . . . . . . . . . . 1 . . Propulsion 5 | 1 . . 2 1 . 1 . . . . . . . . . . . . . . . Utility 8 | 1 . 1 . . . . . 3 . . 2 . . . . . . . . 1 . Weapon 2 | 1 . . . 1 . . . . . . . . . . . . . . . . . Parts Attached 94 | 6 4 1 10 19 2 6 . 21 4 3 2 2 1 . 1 . . 1 2 5 4 Power 19 | 2 1 . . 5 . . . 5 1 1 . . . . . . . 1 1 2 . Engine 8 | 2 . . . 4 . . . 2 . . . . . . . . . . . . . Core 8 | . 1 . . 1 . . . 3 1 1 . . . . . . . 1 . . . Reactor 3 | . . . . . . . . . . . . . . . . . . . 1 2 . Propulsion 15 | 2 . . 4 4 . 3 . 2 . . . . . . . . . . . . . Treads 2 | . . . . . . . . 2 . . . . . . . . . . . . . Leg . | . . . . . . . . . . . . . . . . . . . . . . Wheel 5 | 2 . . 3 . . . . . . . . . . . . . . . . . . Hover . | . . . . . . . . . . . . . . . . . . . . . . Flight 8 | . . . 1 4 . 3 . . . . . . . . . . . . . . . Utility 31 | . 3 1 . 1 1 2 . 5 3 2 2 1 1 . 1 . . . 1 3 4 Device 18 | . 3 1 . . 1 1 . 2 2 2 . 1 1 . 1 . . . 1 1 1 Storage . | . . . . . . . . . . . . . . . . . . . . . . Processor 5 | . . . . . . 1 . 1 1 . 2 . . . . . . . . . . Hackware 1 | . . . . 1 . . . . . . . . . . . . . . . . . Protection 7 | . . . . . . . . 2 . . . . . . . . . . . 2 3 Artifact . | . . . . . . . . . . . . . . . . . . . . . . Weapon 29 | 2 . . 6 9 1 1 . 9 . . . 1 . . . . . . . . . Energy Gun 23 | 2 . . 4 9 1 1 . 6 . . . . . . . . . . . . . Energy Cannon . | . . . . . . . . . . . . . . . . . . . . . . Ballistic Gun 2 | . . . 2 . . . . . . . . . . . . . . . . . . Ballistic Cannon 3 | . . . . . . . . 2 . . . 1 . . . . . . . . . Launcher . | . . . . . . . . . . . . . . . . . . . . . . Special Weapon 1 | . . . . . . . . 1 . . . . . . . . . . . . . Impact Weapon . | . . . . . . . . . . . . . . . . . . . . . . Slashing Weapon . | . . . . . . . . . . . . . . . . . . . . . . Piercing Weapon . | . . . . . . . . . . . . . . . . . . . . . . Special Melee Weapon . | . . . . . . . . . . . . . . . . . . . . . . Unidentified Prototypes 13 | . . 1 1 3 . 2 . 2 . . . 1 . . . . . . 1 2 . Parts Lost 3 | . . . . . . . . . . . . . . . . . . . . . 3 Power . | . . . . . . . . . . . . . . . . . . . . . . Propulsion . | . . . . . . . . . . . . . . . . . . . . . . Utility 3 | . . . . . . . . . . . . . . . . . . . . . 3 Weapon . | . . . . . . . . . . . . . . . . . . . . . . Highest Loss Streak 1 | . . . . . . . . . . . . . . . . . . . . . 1 To Critical Strikes . | . . . . . . . . . . . . . . . . . . . . . . Average Slot Usage (%) 70 | . 91 100 95 59 62 70 76 63 63 63 64 63 67 68 68 68 68 67 68 66 69 Engine 2 | . 21 11 10 6 6 5 5 1 . . . . . . . . . . . . . Core 8 | . 3 11 10 6 6 5 5 9 11 11 10 10 10 10 10 10 10 9 10 7 4 Treads 7 | . . . . . . . . 8 11 11 10 10 10 10 10 10 10 10 10 9 9 Wheel 3 | . 25 24 19 . . . . . . . . . . . . . . . . . . Flight 2 | . . . . 8 12 14 17 2 . . . . . . . . . . . . . Device 20 | . 16 26 31 13 12 14 17 21 17 22 22 21 20 21 21 21 21 21 20 18 18 Processor 9 | . . . . . . 3 5 2 10 11 12 21 21 21 21 21 21 21 20 17 13 Protection 2 | . . . . . . . . 7 4 . . . . . . . . . . 1 7 Energy Gun 6 | . 25 24 20 17 18 17 17 2 . . . . . . . . . . . . . Ballistic Cannon 3 | . . . . . . . . 3 5 5 5 . 5 5 5 5 5 5 5 4 4 Peak Build Rating 141 | 6 11 19 55 71 72 88 88 98 99 97 111 111 111 111 111 110 110 110 124 141 141 Average Rating 88 | 5 8 12 23 63 71 81 88 91 97 96 99 93 110 111 110 110 110 109 114 128 138 On Entrance 83 | . 6 11 19 55 69 72 88 88 93 97 97 111 111 111 111 110 110 110 110 124 141 Naked Turns . | . . . . . . . . . . . . . . . . . . . . . . Heaviest Build 113 | 12 18 32 36 41 42 43 42 80 74 66 66 66 66 66 66 66 66 66 89 113 113 Greatest Support 119 | 26 26 26 39 44 44 50 50 119 119 119 119 119 119 119 119 119 119 119 119 119 119 Greatest Overweight (x) 2 | . . 1 2 1 . . . 1 . . . . . . . . . . . 1 1 Average Overweight (x) . | . . . . . . . . . . . . . . . . . . . . . . Largest Inventory Capacity 4 | . 2 2 2 3 3 3 3 3 4 4 4 4 4 4 4 4 4 4 4 4 4 Average Capacity 3 | . 1 2 2 2 3 3 3 3 3 4 4 4 4 4 4 4 4 4 4 4 4 Most Carried 4 | . 1 1 2 2 3 3 3 3 4 4 4 4 4 4 4 3 3 3 4 4 4 Average Carried 2 | . . 1 1 1 2 2 3 2 3 4 4 4 4 4 3 3 3 3 3 3 4 Final Capacity 4 | . 2 2 2 3 3 3 3 3 4 4 4 4 4 4 4 4 4 4 4 4 4 Final Carried 4 | . 1 1 2 2 2 3 3 3 4 4 4 4 4 4 3 3 3 3 4 4 4 Class Distribution -------------------- 32% | Scavenger-Gunner 23% | Hacker-Gunner 15% | Mutant 7% | Scavenger-Tank 7% | Hacker-Tank 6% | Commander-Sprinter 3% | Commander-Gunner Dominant Class ---------------- Mutant | -10/Materials Mutant | -10/Mines Mutant | -10/Subcaves Hacker-Tank | -8/Materials Hacker-Tank | -7/Factory Commander-Sprinter | -7/Storage Commander-Sprinter | -7/Recycling Scavenger-Tank | -7/Scraptown Scavenger-Gunner | -5/Factory Scavenger-Gunner | -5/Upper Caves Scavenger-Gunner | -5/Upper Caves Scavenger-Mutant | -5/Zhirov Scavenger-Gunner | -4/Proximity Caves Scavenger-Gunner | -4/Factory Hacker-Gunner | -4/Extension Commander-Gunner | -4/Cetus Commander-Gunner | -4/Archives Hacker-Gunner | -4/Hub_04(d) Hacker-Gunner | -3/Research Hacker-Gunner | -3/Quarantine Hacker-Gunner | -2/Research Resources | -11 -10 -10 -10 -8 -7 -7 -7 -7 -5 -5 -5 -5 -4 -4 -4 -4 -4 -4 -3 -3 -2 ----------- Run | Yrd Mat Min Sub Mat Fac Sto Rec Scr Fac Upp Upp Zhi Pro Fac Ext Cet Arc Hub Res Qua Res Matter Collected 13754 | 193 107 . 124 190 20 72 . 3843 1541 496 273 . 790 98 80 28 28 864 136 1878 2993 Remotely 7450 | . . . . . . . . . 52 496 273 . 790 98 80 28 28 864 136 1878 2727 Salvage Created 18867 | . 781 452 668 895 457 1197 . 3515 2128 589 317 . 396 398 202 51 . 1107 302 1284 4128 Parts 1006 | . 48 27 46 49 18 50 6 218 118 31 20 . 19 18 9 1 1 68 9 55 195 Haulers Intercepted 9 | . 2 . . . . 1 . . . . . . . 1 . . . 3 . . 2 Recyclers Shooed 1 | . . . . . . . . . . . . . . . . . . . . . 1 Parts Field Recycled . | . . . . . . . . . . . . . . . . . . . . . . Retrieved Matter . | . . . . . . . . . . . . . . . . . . . . . . Parts Self-Destructed 88 | . . . 16 . . . . . . 33 20 . 19 . . . . . . . . Prevented 1 | . . . . . . . . . . 1 . . . . . . . . . . . Kills | -11 -10 -10 -10 -8 -7 -7 -7 -7 -5 -5 -5 -5 -4 -4 -4 -4 -4 -4 -3 -3 -2 ------- Run | Yrd Mat Min Sub Mat Fac Sto Rec Scr Fac Upp Upp Zhi Pro Fac Ext Cet Arc Hub Res Qua Res Combat Hostiles Destroyed 507 | . 19 15 18 28 7 24 3 114 58 18 9 . 20 7 2 2 1 20 7 40 95 Guns 115 | . 17 15 18 28 6 20 2 9 . . . . . . . . . . . . . Cannons 375 | . . . . . . . . 100 55 18 9 . 20 7 2 2 1 20 7 39 95 AOE 4 | . . . . . 1 . . . 3 . . . . . . . . . . . . Classes Destroyed 36 | . 5 2 3 4 1 . . 10 5 1 . . . . . . . 2 . 1 2 Worker 17 | . . . . 1 . . . . 3 . . . . 1 1 . . 3 . 1 7 Builder 13 | . . . . . . . . . 3 . . . . . . . . 5 . 1 4 Tunneler 2 | . . 1 . . . . . . . . . . . . . . . . . . 1 Hauler 9 | . 2 . . . . 1 . . . . . . . 1 . . . 3 . . 2 Recycler 4 | . . . . . . . . . 3 . . . . . . . . . . . 1 Mechanic 4 | . 1 . . . . . . . 1 . . . . . . . . . . . 2 Operator 9 | . . . . 1 . 1 . . 2 . . . . 1 1 . . 2 1 . . Turret 2 | . . . 2 . . . . . . . . . . . . . . . . . . Watcher 22 | . 3 . . 3 2 1 . . 3 . . . . . 1 . . 2 . . 7 Swarmer 48 | . 3 3 4 5 . . . . 9 1 1 . 11 . . . . 3 2 . 6 Saboteur 4 | . . . . . . . . . 1 . . . . . . . . . . 1 2 Grunt 158 | . 16 10 . 11 2 8 . . 24 11 2 . 6 6 . . . 6 2 13 41 Brawler 14 | . . . . 1 . . . . . 1 1 . 1 1 . . . . . . 9 Duelist 7 | . . . . . . . . . 2 1 . . . . . . . . . 1 3 Protector 6 | . . . . . . . . . . . . . . . . . . 1 . 1 4 Researcher 1 | . . . . . . . . . . . . . . . . . . . . 1 . Sentry 43 | . . . 1 9 3 12 3 . 5 2 2 . 1 . . . 1 1 2 . 1 Specialist 1 | . . . . . . . . . . . . . . . . . . 1 . . . Hunter 29 | . . . . 2 1 2 . . 4 . 2 . . . 2 . . 3 . 6 7 Programmer 41 | . . . . . 1 2 . . 12 1 . . . . . . . 1 . 6 18 Heavy 1 | . . . . . . . . . 1 . . . . . . . . . . . . Behemoth 7 | . . . . . . . . . . 1 1 . 1 . . . . 1 1 . 2 Cetus Guard 2 | . . . . . . . . . . . . . . . . 2 . . . . . Quarantine Guard 9 | . . . . . . . . . . . . . . . . . . . . 9 . Enhanced Grunt 1 | . . . . . . . . . . . . . . . . . . 1 . . . Lightning 6 | . . . . . . . . . . . . . . . . . . 3 . 3 . Investigator 2 | . . . . . . . . . . . . . . . . . . . . . 2 Striker 1 | . . . . . . . . . . . . . . . . . . . . . 1 Executioner 1 | . . . . . . . . . . . . . . . . . . . . . 1 Subdweller 13 | . . . 13 . . . . . . . . . . . . . . . . . . Bolteater 7 | . . . . . . . . 7 . . . . . . . . . . . . . Federalist 8 | . . . . . . . . 8 . . . . . . . . . . . . . Explorer 5 | . . . . . . . . 5 . . . . . . . . . . . . . Ranger 5 | . . . . . . . . 5 . . . . . . . . . . . . . Guru 13 | . . . . . . . . 13 . . . . . . . . . . . . . Scientist 4 | . . . . . . . . 4 . . . . . . . . . . . . . Scrapper 50 | . . . . . . . . 50 . . . . . . . . . . . . . Elite 25 | . . . . . . . . 25 . . . . . . . . . . . . . Zionite 2 | . . . . . . . . 2 . . . . . . . . . . . . . Tinkerer 1 | . . . . . . . . 1 . . . . . . . . . . . . . Assembled 2 | . . 2 . . . . . . . . . . . . . . . . . . . Guerrilla 3 | . . . . . . . . . . . . . . . . . . 3 . . . Best Kill Streak 19 | . 5 5 3 9 2 7 1 19 11 7 5 . 7 8 2 2 1 9 2 9 17 Combat Bots Only 15 | . 3 5 3 9 2 5 1 13 9 7 5 . 7 6 2 2 1 4 2 7 15 Max Kills in Single Turn 6 | . 2 1 1 2 1 2 1 3 2 1 2 . 2 3 2 1 1 6 1 2 3 Gunslinging 1 | . 1 . . . . . . . . . . . . . . . . . . . . Exploded 2 | . . . . . 1 . . . 2 . . . . . . . . . . . . Melee . | . . . . . . . . . . . . . . . . . . . . . . Uniques/NPCs Destroyed 1 | . . . . . . . . 1 . . . . . . . . . . . . . Triborg (-7/Scraptown) Combat | -11 -10 -10 -10 -8 -7 -7 -7 -7 -5 -5 -5 -5 -4 -4 -4 -4 -4 -4 -3 -3 -2 -------- Run | Yrd Mat Min Sub Mat Fac Sto Rec Scr Fac Upp Upp Zhi Pro Fac Ext Cet Arc Hub Res Qua Res Hostile Shots Fired 2527 | . 81 50 138 115 105 284 63 353 113 37 5 . 79 2 25 . 4 68 16 240 749 Missed 786 | . 26 17 54 44 48 148 28 100 25 11 . . 13 . 8 . . 19 2 75 168 Damage Taken 16789 | . 367 204 818 510 284 590 118 3411 976 353 51 . 853 48 173 30 50 811 141 1443 5558 Core 12633 | . 288 160 657 380 209 432 82 2551 717 295 39 . 671 38 133 23 41 628 109 1077 4103 Absorbed by Shields 8401 | . 56 76 313 206 109 230 46 973 370 84 18 . 289 17 67 12 18 292 67 1491 3667 Reduced by Siege Mode 378 | . . . . . . . . 64 28 4 3 . 30 4 . 3 . 30 4 58 150 Redirected to Core 11502 | . 231 129 509 356 199 379 75 2353 682 175 39 . 579 38 123 23 28 628 109 1004 3843 Ignored by Resistances 13007 | . 215 133 474 349 189 411 88 2000 676 194 41 . 616 36 142 25 39 424 148 1658 5149 Core Remaining (%) 85 | 100 . . 78 100 . . . 87 . . . . 81 . . . . 100 . 50 . Volleys Fired 1285 | . 69 44 95 83 23 66 10 277 94 31 15 . 47 7 5 2 2 60 14 120 221 Largest 3 | . 2 2 2 3 3 3 3 3 1 1 1 . 1 1 1 1 1 1 1 1 1 Hottest 195 | . 100 100 120 195 193 193 191 191 70 70 70 . 70 70 70 70 70 70 70 70 70 Shots Fired 1868 | . 138 88 183 214 69 198 29 329 95 32 15 . 50 7 5 2 2 61 14 119 218 Gun 995 | . 138 88 183 214 69 198 29 76 . . . . . . . . . . . . . Cannon 872 | . . . . . . . . 252 95 32 15 . 50 7 5 2 2 61 14 119 218 Launcher . | . . . . . . . . . . . . . . . . . . . . . . Special 1 | . . . . . . . . 1 . . . . . . . . . . . . . Kinetic 879 | . . . 7 . . . . 252 95 32 15 . 50 7 5 2 2 61 14 119 218 Thermal 988 | . 138 88 176 214 69 198 29 76 . . . . . . . . . . . . . Explosive . | . . . . . . . . . . . . . . . . . . . . . . Electromagnetic . | . . . . . . . . . . . . . . . . . . . . . . Robot Hit Streak 98 | . 20 13 98 45 21 25 25 97 52 68 11 . 35 42 45 47 49 66 11 22 32 Robot Miss Streak 3 | . 2 3 2 3 1 1 1 2 1 1 1 . 1 . . . . 1 . 2 2 Penetration Max 3 | . . . . . . . . 3 1 . 1 . 1 1 1 1 . 2 . 1 2 Secondary Targets 14 | . 2 3 4 1 1 3 . . . . . . . . . . . . . . . Max Gunslinging Chain 1 | . 1 1 1 1 1 1 . . . . . . . . . . . . . . . Shots Hit Robots 1539 | . 116 62 145 173 52 144 25 272 88 26 11 . 45 7 3 2 2 53 11 102 200 Core Hits 684 | . 42 29 34 59 21 61 8 118 54 15 8 . 16 11 3 2 1 36 7 44 115 Critical Kills . | . . . . . . . . . . . . . . . . . . . . . . Critical Parts Destroyed . | . . . . . . . . . . . . . . . . . . . . . . Critical Strikes 196 | . 12 8 6 5 4 6 . 43 15 3 2 . 8 2 . 1 . 14 4 18 45 Burn 45 | . 12 8 6 5 4 6 . 4 . . . . . . . . . . . . . Blast 151 | . . . . . . . . 39 15 3 2 . 8 2 . 1 . 14 4 18 45 Melee Attacks . | . . . . . . . . . . . . . . . . . . . . . . Impact . | . . . . . . . . . . . . . . . . . . . . . . Slashing . | . . . . . . . . . . . . . . . . . . . . . . Piercing . | . . . . . . . . . . . . . . . . . . . . . . Sneak Attacks . | . . . . . . . . . . . . . . . . . . . . . . Combat Hostiles . | . . . . . . . . . . . . . . . . . . . . . . Follow-up Attacks . | . . . . . . . . . . . . . . . . . . . . . . Damage Inflicted 106898 | . 1588 885 1432 3267 1215 2829 470 22297 12240 2867 1419 . 5721 1377 604 304 188 6708 1308 12202 27977 Guns 12834 | . 1588 885 1432 3267 1003 2829 470 1360 . . . . . . . . . . . . . Cannons 92470 | . . . . . . . . 20937 11662 2867 1419 . 5721 1131 599 304 188 6300 1308 12202 27832 Explosions 1524 | . . . . . 212 . . . 576 . . . . 231 . . . 392 . . 113 Melee . | . . . . . . . . . . . . . . . . . . . . . . Ramming 70 | . . . . . . . . . 2 . . . . 15 5 . . 16 . . 32 Kinetic 92495 | . . . 25 . . . . 20937 11662 2867 1419 . 5721 1131 599 304 188 6300 1308 12202 27832 Thermal 13252 | . 1588 885 1407 3267 1215 2829 470 1360 . . . . . 231 . . . . . . . Explosive 576 | . . . . . . . . . 576 . . . . . . . . . . . . Electromagnetic 505 | . . . . . . . . . . . . . . . . . . 392 . . 113 Impact . | . . . . . . . . . . . . . . . . . . . . . . Slashing . | . . . . . . . . . . . . . . . . . . . . . . Piercing . | . . . . . . . . . . . . . . . . . . . . . . Highest Corruption 16 | . . . . . . 1 1 2 2 2 2 2 2 . . . . 8 . 8 16 Average Corruption 2 | . . . . . . 1 1 1 1 2 2 2 2 . . . . 6 . 7 5 Corruption Purged . | . . . . . . . . . . . . . . . . . . . . . . Corruption Blocked . | . . . . . . . . . . . . . . . . . . . . . . Effects 196 | . . . . . . 4 4 25 18 19 17 4 20 . . . . 4 . 43 38 Message Errors 47 | . . . . . . 2 2 8 1 8 4 . 2 . . . . 1 . 11 8 Matter Fused 51 | . . . . . . 2 1 4 5 3 6 2 6 . . . . . . 13 9 Heat Flow Errors 15 | . . . . . . . . 3 2 . 1 . 1 . . . . . . 5 3 Energy Discharges 21 | . . . . . . . . 3 5 . 2 2 2 . . . . . . 3 4 Parts Rejected 2 | . . . . . . . . . 1 . . . . . . . . 1 . . . Parts Fused 5 | . . . . . . . . . 1 . 1 . 1 . . . . . . 1 1 Data Loss (minor) 19 | . . . . . . . . 4 . 4 2 . 1 . . . . 1 . 3 4 Data Loss (major) 9 | . . . . . . . . . 1 2 1 . 1 . . . . . . 3 1 Misfires 12 | . . . . . . . . 2 1 1 . . 4 . . . . 1 . 1 2 Alerts 6 | . . . . . . . . 1 1 1 . . 1 . . . . . . 1 1 Weapon Failures 9 | . . . . . . . 1 . . . . . 1 . . . . . . 2 5 Overload Shots . | . . . . . . . . . . . . . . . . . . . . . . Overflow Damage 13365 | . . . . . 7 . . 2800 2357 249 156 . 655 39 214 . . 891 71 1360 4566 Projectiles 13277 | . . . . . . . . 2800 2331 249 156 . 655 . 214 . . 883 71 1360 4558 Explosions 88 | . . . . . 7 . . . 26 . . . . 39 . . . 8 . . 8 Melee . | . . . . . . . . . . . . . . . . . . . . . . Knockbacks 276 | . . . . . . . . 87 26 5 . . 9 2 1 . . 18 . 29 99 Impact 1 | . . . . . . . . . . . . . . . 1 . . . . . . Kinetic 242 | . . . . . . . . 72 24 5 . . 9 2 . . . 16 . 27 87 Secondary 33 | . . . . . . . . 15 2 . . . . . . . . 2 . 2 12 Self-Inflicted Damage 281 | . . . . . 66 . . . 94 . . . . 40 . . . 81 . . . Shots 5 | . . . . . 1 . . . 2 . . . . 1 . . . 1 . . . Rammed 10 | . . . . . . . . . 1 . . . . 2 1 . . 2 . . 4 Targets Rammed 11 | . . . . . . . . . 2 . . . . 2 1 . . 2 . . 4 Kicked . | . . . . . . . . . . . . . . . . . . . . . . Crushed 1 | . . . . . . . . . 1 . . . . . . . . . . . . Highest Temperature 288 | . 288 5 116 117 23 16 20 190 145 . 50 . 118 . . . . . . 215 202 Average Temperature 33 | . 97 4 58 30 9 5 10 38 81 . 50 . 55 . . . . . . 102 102 Received Heat Transfer 4199 | . 274 143 332 248 113 270 44 1180 144 81 12 . 344 14 68 . 12 36 24 139 721 Siege Activations 191 | . . . . . . . . 66 32 8 4 . 5 2 4 2 1 14 6 21 26 Total Turns 2782 | . . . . . . . . 685 658 69 42 . 100 28 33 36 5 154 53 345 574 Longest Duration 115 | . . . . . . . . 95 115 15 19 . 42 20 24 21 5 25 19 47 83 Robots Corrupted 6 | . . . . . . . . 4 1 . . . . . . . . . . . 1 Combat Hostiles 4 | . . . . . . . . 4 . . . . . . . . . . . . . Parts Fried 8 | . . . . . . . . 5 . . . . . . . . . . . . 3 Impact Corruptions 14 | . . . . . . . . 7 4 . . . . . . . . . . . 3 Robots Melted 8 | . 3 . . . . 4 1 . . . . . . . . . . . . . . Combat Hostiles 7 | . 2 . . . . 4 1 . . . . . . . . . . . . . . Parts Melted 103 | . 17 6 4 12 12 22 6 19 . . . . . 1 . . . . 1 3 . Heat Transferred 30255 | . 5254 2997 3473 6724 2320 5809 925 2553 . . . . . 200 . . . . . . . Parts Sabotaged 2 | . . . . . . . . . 1 . . . . . . . . . . . 1 Parts Stolen . | . . . . . . . . . . . . . . . . . . . . . . Parts Stripped . | . . . . . . . . . . . . . . . . . . . . . . Power Chain Reactions . | . . . . . . . . . . . . . . . . . . . . . . Alert | -11 -10 -10 -10 -8 -7 -7 -7 -7 -5 -5 -5 -5 -4 -4 -4 -4 -4 -4 -3 -3 -2 ------- Run | Yrd Mat Min Sub Mat Fac Sto Rec Scr Fac Upp Upp Zhi Pro Fac Ext Cet Arc Hub Res Qua Res Peak Influence 3186 | . 371 220 . 530 457 537 97 . 687 . . . . 440 380 358 260 845 561 763 3186 Initial 380 | . . 74 . . 74 17 24 . . . . . . . . 145 120 76 380 200 373 Average 372 | . 195 115 . 209 124 203 45 . 382 . . . . 186 123 276 241 396 403 446 1332 Maximum Alert Level 5 | . 1 1 . 2 2 2 . . 2 . . . . 2 1 1 1 3 2 3 5 Low Security (%) 37 | 100 49 81 . 59 69 47 100 . 20 . . . . 58 78 7 15 32 . . . Level 1 29 | . 50 18 . 22 27 46 . . 23 . . . . 1 21 92 84 24 53 36 9 Level 2 25 | . . . . 18 2 6 . . 55 . . . . 40 . . . 22 46 56 24 Level 3 2 | . . . . . . . . . . . . . . . . . . 19 . 7 12 Level 4 1 | . . . . . . . . . . . . . . . . . . . . . 18 Level 5 . | . . . . . . . . . . . . . . . . . . . . . 6 High Security 2 | . . . . . . . . . . . . . . . . . . . . . 29 Max Security . | . . . . . . . . . . . . . . . . . . . . . . Squads Dispatched 79 | . 5 . . 5 2 3 . . 13 . . . . 1 . . . 12 4 8 26 Investigation 19 | . 5 . . 2 1 1 . . 4 . . . . . . . . 2 3 . 1 Extermination 14 | . . . . . 1 2 . . 5 . . . . . . . . 1 . 2 3 Reinforcement 14 | . . . . . . . . . 2 . . . . 1 . . . 6 1 2 2 Assault 20 | . . . . . . . . . 2 . . . . . . . . . . 1 17 Garrison 12 | . . . . 3 . . . . . . . . . . . . . 3 . 3 3 Intercept . | . . . . . . . . . . . . . . . . . . . . . . Searches Triggered . | . . . . . . . . . . . . . . . . . . . . . . Construction Impeded 2 | . . . . . . . . . . . . . . . . . . 1 . . 1 Haulers Reinforced 3 | . . . . . . . . . . . . . . . . . . 2 1 . . Active Scanning Responses . | . . . . . . . . . . . . . . . . . . . . . . Cargo Convoy Interrupts . | . . . . . . . . . . . . . . . . . . . . . . Stealth | -11 -10 -10 -10 -8 -7 -7 -7 -7 -5 -5 -5 -5 -4 -4 -4 -4 -4 -4 -3 -3 -2 --------- Run | Yrd Mat Min Sub Mat Fac Sto Rec Scr Fac Upp Upp Zhi Pro Fac Ext Cet Arc Hub Res Qua Res Distress Signals 25 | . . . . 2 1 1 . 1 . . . . . . 1 2 . . 9 . 8 Communications Jammed 3 | . . . . . . 3 . . . . . . . . . . . . . . . Distress Signals 3 | . . . . . . 3 . . . . . . . . . . . . . . . Times Spotted 704 | . 30 17 28 47 11 29 3 127 66 18 5 . 16 7 20 8 3 45 17 45 162 Peak Tracking Total 16 | . 3 3 4 6 3 6 1 12 7 6 2 . 6 4 3 5 2 5 4 7 16 Tactical Retreats 46 | . 4 2 4 3 1 1 . 15 . . . . . . . . . 1 1 1 13 Traps | -11 -10 -10 -10 -8 -7 -7 -7 -7 -5 -5 -5 -5 -4 -4 -4 -4 -4 -4 -3 -3 -2 ------- Run | Yrd Mat Min Sub Mat Fac Sto Rec Scr Fac Upp Upp Zhi Pro Fac Ext Cet Arc Hub Res Qua Res Traps Triggered 21 | . 4 . 3 . . . . . 1 . . . . . 1 . . 3 . 5 4 Indirectly . | . . . . . . . . . . . . . . . . . . . . . . Trap Hack Attempts . | . . . . . . . . . . . . . . . . . . . . . . Triggered . | . . . . . . . . . . . . . . . . . . . . . . Disarmed . | . . . . . . . . . . . . . . . . . . . . . . Reprogrammed . | . . . . . . . . . . . . . . . . . . . . . . Reused . | . . . . . . . . . . . . . . . . . . . . . . Traps Extracted . | . . . . . . . . . . . . . . . . . . . . . . Installed . | . . . . . . . . . . . . . . . . . . . . . . Triggered . | . . . . . . . . . . . . . . . . . . . . . . Machines | -11 -10 -10 -10 -8 -7 -7 -7 -7 -5 -5 -5 -5 -4 -4 -4 -4 -4 -4 -3 -3 -2 ---------- Run | Yrd Mat Min Sub Mat Fac Sto Rec Scr Fac Upp Upp Zhi Pro Fac Ext Cet Arc Hub Res Qua Res Machines Disabled 92 | . . . 1 1 2 4 . 24 10 1 1 . . 11 . . . 18 1 10 8 Max in Single Turn 7 | . . . 1 1 2 1 . 2 3 1 1 . . 7 . . . 7 1 1 2 Garrison Access 1 | . . . . . . . . . . . . . . . . . . . . 1 . Network Hub 1 | . . . . . . . . . . . . . . . . . . 1 . . . Machines Repaired . | . . . . . . . . . . . . . . . . . . . . . . Machines Dismantled . | . . . . . . . . . . . . . . . . . . . . . . Machines Sabotaged . | . . . . . . . . . . . . . . . . . . . . . . Overloaded Fab Kills . | . . . . . . . . . . . . . . . . . . . . . . Hacking | -11 -10 -10 -10 -8 -7 -7 -7 -7 -5 -5 -5 -5 -4 -4 -4 -4 -4 -4 -3 -3 -2 --------- Run | Yrd Mat Min Sub Mat Fac Sto Rec Scr Fac Upp Upp Zhi Pro Fac Ext Cet Arc Hub Res Qua Res Machines Accessed 95 | . 6 1 1 11 9 16 6 2 11 . 1 4 . 1 6 2 . 6 3 6 3 Terminals 74 | . 4 . . 9 8 16 6 . 7 . . . . 1 6 2 . 4 2 6 3 Fabricators 4 | . . . . . . . . . 3 . . . . . . . . . 1 . . Repair Stations . | . . . . . . . . . . . . . . . . . . . . . . Recycling Units 4 | . 2 . . 1 1 . . . . . . . . . . . . . . . . Scanalyzers . | . . . . . . . . . . . . . . . . . . . . . . Garrison Access 4 | . . . . 1 . . . . 1 . . . . . . . . 2 . . . Total Hacks 316 | . 12 1 4 38 38 39 26 9 27 . 1 17 . 10 8 8 . 30 26 13 9 Successful 224 | . 8 1 4 32 28 31 19 9 18 . 1 17 . 6 7 5 . 17 10 8 3 Failed 90 | . 4 . . 6 10 8 6 . 9 . . . . 4 1 3 . 13 15 5 6 Catastrophic 7 | . . . . . . . . . . . . . . 1 . . . 2 3 . 1 Database Lockouts 2 | . . . . . . . 1 . . . . . . . . . . . 1 . . Manual 199 | . 10 . . 27 34 26 23 . 18 . . . . 10 2 1 . 14 25 2 7 Terminals 259 | . 9 . . 36 37 39 26 . 15 . . . . 10 8 8 . 26 23 13 9 Fabricators 14 | . . . . . . . . . 11 . . . . . . . . . 3 . . Repair Stations . | . . . . . . . . . . . . . . . . . . . . . . Recycling Units 5 | . 3 . . 1 1 . . . . . . . . . . . . . . . . Scanalyzers . | . . . . . . . . . . . . . . . . . . . . . . Garrison Access 6 | . . . . 1 . . . . 1 . . . . . . . . 4 . . . Terminal Hacks 141 | . 2 1 4 19 14 19 12 9 2 . 1 17 . 5 6 5 . 12 5 7 1 Record 25 | . . . 4 . . 2 . 4 . . . 5 . . . 4 . 1 . 4 1 Part Schematic 4 | . . . . . . . . . . . . 4 . . . . . . . . . Robot Schematic 4 | . . . . . 2 . 2 . . . . . . . . . . . . . . Robot Analysis 28 | . 1 . . 6 4 1 3 5 . . . 4 . . . . . 1 3 . . Prototype ID Bank 8 | . 1 . . 1 . 1 1 . . . . 4 . . . . . . . . . Open Door 16 | . . 1 . . . 7 . . . . 1 . . . 5 1 . . . 1 . Level Access Points 1 | . . . . . . . . . . . . . . . . . . . 1 . . Branch Access Points 6 | . . . . 1 1 1 . . 1 . . . . 1 . . . . 1 . . Emergency Access Points 1 | . . . . 1 . . . . . . . . . . . . . . . . . Machine Index 1 | . . . . . . . 1 . . . . . . . . . . . . . . Terminal Index 3 | . . . . 1 1 1 . . . . . . . . . . . . . . . Fabricator Index 1 | . . . . . 1 . . . . . . . . . . . . . . . . Recycling Unit Index 2 | . . . . . 1 1 . . . . . . . . . . . . . . . Alert Level 15 | . . . . 4 1 2 2 . 1 . . . . 1 1 . . 3 . . . Unreport Threat 24 | . . . . 5 3 2 2 . . . . . . 3 . . . 7 . 2 . Reprogram Traps 1 | . . . . . . 1 . . . . . . . . . . . . . . . Registered Components 1 | . . . . . . . 1 . . . . . . . . . . . . . . Fabricator Hacks 9 | . . . . . . . . . 7 . . . . . . . . . 2 . . Network Status 1 | . . . . . . . . . 1 . . . . . . . . . . . . Load Schematic 4 | . . . . . . . . . 3 . . . . . . . . . 1 . . Build 4 | . . . . . . . . . 3 . . . . . . . . . 1 . . Repair Station Hacks . | . . . . . . . . . . . . . . . . . . . . . . Recycling Unit Hacks . | . . . . . . . . . . . . . . . . . . . . . . Scanalyzer . | . . . . . . . . . . . . . . . . . . . . . . Garrison Access Hacks . | . . . . . . . . . . . . . . . . . . . . . . Unauthorized Hacks 74 | . 6 . . 13 14 12 7 . 9 . . . . 1 1 . . 5 3 1 2 Terminals 63 | . 4 . . 11 13 12 7 . 6 . . . . 1 1 . . 3 2 1 2 Track 1 | . . . . . . 1 . . . . . . . . . . . . . . . Assimilate 7 | . . . . 2 4 1 . . . . . . . . . . . . . . . Botnet 52 | . 4 . . 9 8 9 6 . 6 . . . . 1 1 . . 3 2 1 2 Operators 3 | . . . . . 1 1 1 . . . . . . . . . . . . . . Fabricators 3 | . . . . . . . . . 2 . . . . . . . . . 1 . . Prioritize 3 | . . . . . . . . . 2 . . . . . . . . . 1 . . Repair Stations . | . . . . . . . . . . . . . . . . . . . . . . Recycling Units 4 | . 2 . . 1 1 . . . . . . . . . . . . . . . . Tunnel 4 | . 2 . . 1 1 . . . . . . . . . . . . . . . . Scanalyzers . | . . . . . . . . . . . . . . . . . . . . . . Garrison Access 4 | . . . . 1 . . . . 1 . . . . . . . . 2 . . . Reprogram 4 | . . . . 1 . . . . 1 . . . . . . . . 2 . . . Data Cores Recovered 5 | . . . . 1 . . . . 2 . . . . . . . . 1 1 . . Used . | . . . . . . . . . . . . . . . . . . . . . . Hacking Detections 56 | . 3 . . 9 8 10 4 . 9 . . . . 1 1 . . 5 2 1 3 Full Trace Events 6 | . 1 . . . . 1 . . 3 . . . . . . . . . 1 . . Feedback Events 1 | . . . . . . 1 . . . . . . . . . . . . . . . Corruption 1 | . . . . . . 1 . . . . . . . . . . . . . . . Feedback Blocked . | . . . . . . . . . . . . . . . . . . . . . . Robot Schematics Acquired 7 | . . . . . 2 . 2 . . . . . . . . . . . . 3 . Robots Built . | . . . . . . . . . . . . . . . . . . . . . . Authchips . | . . . . . . . . . . . . . . . . . . . . . . Time . | . . . . . . . . . . . . . . . . . . . . . . Total Robot Build Rating . | . . . . . . . . . . . . . . . . . . . . . . Part Schematics Acquired 7 | . . . . . . . . 1 . . . 4 . . . . . . . 2 . Parts Built 2 | . . . . . . . . . 1 . . . . . . . . . 1 . . Authchips . | . . . . . . . . . . . . . . . . . . . . . . Time 253 | . . . . . . . . . 228 . . . . . . . . . 25 . . Total Part Build Rating 10 | . . . . . . . . . 5 . . . . . . . . . 5 . . Parts Repaired . | . . . . . . . . . . . . . . . . . . . . . . Time . | . . . . . . . . . . . . . . . . . . . . . . Parts Recycled . | . . . . . . . . . . . . . . . . . . . . . . Recycled Matter . | . . . . . . . . . . . . . . . . . . . . . . Retrieved Matter . | . . . . . . . . . . . . . . . . . . . . . . Retrieved Components . | . . . . . . . . . . . . . . . . . . . . . . Parts Scanalyzed . | . . . . . . . . . . . . . . . . . . . . . . Part Schematics Acquired . | . . . . . . . . . . . . . . . . . . . . . . Parts Damaged . | . . . . . . . . . . . . . . . . . . . . . . Bothacking | -11 -10 -10 -10 -8 -7 -7 -7 -7 -5 -5 -5 -5 -4 -4 -4 -4 -4 -4 -3 -3 -2 ------------ Run | Yrd Mat Min Sub Mat Fac Sto Rec Scr Fac Upp Upp Zhi Pro Fac Ext Cet Arc Hub Res Qua Res Used RIF Installer . | . . . . . . . . . . . . . . . . . . . . . . Robots Hacked . | . . . . . . . . . . . . . . . . . . . . . . Non-combat . | . . . . . . . . . . . . . . . . . . . . . . Combat . | . . . . . . . . . . . . . . . . . . . . . . Robot Hacks Applied . | . . . . . . . . . . . . . . . . . . . . . . Relay Couplers Released 2 | . . . . . . . . . . . . . . . . . . . . 1 1 Machine Destruction 1 | . . . . . . . . . . . . . . . . . . . . 1 . Programmers 1 | . . . . . . . . . . . . . . . . . . . . . 1 Fabnet Peak Effective % . | . . . . . . . . . . . . . . . . . . . . . . Robots Rewired 22 | . . . . . . . . . . 2 1 . 2 . 17 . . . . . . Allies Hacked . | . . . . . . . . . . . . . . . . . . . . . . Hacks Repelled . | . . . . . . . . . . . . . . . . . . . . . . Allies | -11 -10 -10 -10 -8 -7 -7 -7 -7 -5 -5 -5 -5 -4 -4 -4 -4 -4 -4 -3 -3 -2 -------- Run | Yrd Mat Min Sub Mat Fac Sto Rec Scr Fac Upp Upp Zhi Pro Fac Ext Cet Arc Hub Res Qua Res Total Allies 86 | . . . . 4 2 11 . . 4 3 1 . 2 1 39 5 . 3 3 2 6 Largest Group 31 | . . . . 2 4 15 14 14 4 2 3 . 2 2 27 31 24 22 3 5 6 Highest-Rated Group 1511 | . . . . 28 56 255 229 229 116 58 88 . 60 40 1050 1511 1263 1066 30 50 87 Highest-Rated Ally 159 | . . . . 18 26 29 29 29 29 29 30 . 30 30 159 159 159 96 10 10 15 Total Orders 115 | . . 1 4 2 9 42 2 34 6 6 4 . . . 2 1 1 . 1 . . STAY 45 | . . . 1 . 3 11 1 23 . 3 2 . . . 1 . . . . . . FOLLOW 46 | . . . . 1 4 28 1 8 . 2 1 . . . 1 . . . . . . RETURN 24 | . . 1 3 1 2 3 . 3 6 1 1 . . . . 1 1 . 1 . . Ally Attacks 663 | . . . . 1 . 2 . 59 26 21 8 . . 6 215 65 28 178 10 7 37 Total Damage 13497 | . . . . 36 . 38 . 706 339 283 76 . . 80 3836 1862 706 4623 110 82 720 Kills 89 | . . . . 1 . 1 . 5 2 2 . . . 1 29 8 3 30 3 . 4 Allies Corrupted 5 | . . . . . . . . 1 . . . . . . . . . 3 . . 1 Allies Melted . | . . . . . . . . . . . . . . . . . . . . . . Intel | -11 -10 -10 -10 -8 -7 -7 -7 -7 -5 -5 -5 -5 -4 -4 -4 -4 -4 -4 -3 -3 -2 ------- Run | Yrd Mat Min Sub Mat Fac Sto Rec Scr Fac Upp Upp Zhi Pro Fac Ext Cet Arc Hub Res Qua Res Robot Analysis Total 27 | . 1 . . 6 3 1 3 5 . . . 4 . . . . . 1 3 . . Derelict Logs Recovered 10 | . . 1 2 . . . . . . 3 1 . 3 . . . . . . . . Drone Launches 27 | . . 1 3 1 3 2 1 4 5 1 3 . . . . . 1 . 1 . 1 Drone Recoveries 26 | . . 1 3 1 2 2 . 6 5 1 2 . . . . 1 1 . 1 . . Exploration | -11 -10 -10 -10 -8 -7 -7 -7 -7 -5 -5 -5 -5 -4 -4 -4 -4 -4 -4 -3 -3 -2 ------------- Run | Yrd Mat Min Sub Mat Fac Sto Rec Scr Fac Upp Upp Zhi Pro Fac Ext Cet Arc Hub Res Qua Res Turns Passed 26109 | 62 883 973 2031 950 933 1378 497 3440 3022 1611 1286 209 1768 354 1417 326 147 732 1051 1498 1541 Spaces Moved 20261 | 56 601 582 1717 1401 1244 1829 875 2815 1748 1200 1002 170 1292 245 670 210 81 397 765 831 530 Core 2 | 2 . . . . . . . . . . . . . . . . . . . . . Treads 10695 | . . . . . . . . 1554 1748 1200 1002 170 1292 245 670 210 81 397 765 831 530 Legs . | . . . . . . . . . . . . . . . . . . . . . . Wheels 2557 | 54 601 582 1320 . . . . . . . . . . . . . . . . . . Hover . | . . . . . . . . . . . . . . . . . . . . . . Flight 7007 | . . . 397 1401 1244 1829 875 1261 . . . . . . . . . . . . . Fastest Speed 30 | 50 90 90 40 34 34 30 30 30 120 120 120 120 120 120 120 120 120 120 120 120 120 Average Speed 88 | 88 90 94 91 37 34 32 30 80 120 120 120 120 120 120 120 120 120 120 120 121 140 Slowest Speed 230 | 90 90 105 130 80 34 34 30 230 120 120 120 120 120 120 120 120 120 120 120 230 230 Overloaded Moves . | . . . . . . . . . . . . . . . . . . . . . . Propulsion Burnouts . | . . . . . . . . . . . . . . . . . . . . . . Robots Hopped 55 | . . . . 11 6 32 6 . . . . . . . . . . . . . . Cave-ins Triggered 1 | . . . . . . . . . . . . . . . . . . . . . 1 Exploration Rate (%) 67 | 4 89 94 90 90 28 94 99 91 40 98 97 61 96 8 75 82 76 46 24 88 20 Regions Visited 21 Branch Regions 14 Pre-discovered Areas 12 | . 2 1 1 1 1 1 . . . 1 . 3 1 . . . . . . . . Known Exits Taken 15 | . . 1 1 1 1 1 . . 1 1 1 1 1 1 . . 1 1 1 1 . Unknown Exits Taken 6 | 1 1 . . . . . 1 1 . . . . . . 1 1 . . . . . Scrap Searched 26 | . . 1 9 . . . . 6 . 4 4 . 2 . . . . . . . . Spaces Dug 75 | . . . . . . . . 47 . 6 . . . . 4 . . 10 7 . 1 Terrain Destroyed 1140 | . . . . . 42 . . 157 153 45 26 . 59 95 5 4 4 233 18 90 209 Melee . | . . . . . . . . . . . . . . . . . . . . . . Projectile 767 | . . . . . . . . 157 99 45 26 . 59 2 5 4 4 78 18 90 180 AOE 373 | . . . . . 42 . . . 54 . . . . 93 . . . 155 . . 29 Terrain Rammed . | . . . . . . . . . . . . . . . . . . . . . . Walls Destroyed . | . . . . . . . . . . . . . . . . . . . . . . Machines Disabled . | . . . . . . . . . . . . . . . . . . . . . . Actions | -11 -10 -10 -10 -8 -7 -7 -7 -7 -5 -5 -5 -5 -4 -4 -4 -4 -4 -4 -3 -3 -2 --------- Run | Yrd Mat Min Sub Mat Fac Sto Rec Scr Fac Upp Upp Zhi Pro Fac Ext Cet Arc Hub Res Qua Res Total 26687 | 65 802 917 1994 1635 1695 2435 1080 3684 2577 1338 1069 174 1462 297 1277 282 129 591 883 1201 1100 Wait 4325 | 4 107 279 138 94 425 523 193 398 661 68 47 . 98 37 512 62 44 100 91 221 223 Move 20132 | 55 600 581 1716 1379 1231 1765 862 2814 1747 1199 1001 169 1291 244 669 209 80 396 764 830 530 Hop 53 | . . . . 10 6 31 6 . . . . . . . . . . . . . . Pick Up 12 | . . . 1 . . . . 7 1 . . . . . . . . . 1 2 . Fast Attach 58 | 6 2 1 2 5 1 3 . 13 3 3 2 3 1 . 1 . . 1 2 5 4 Attach 4 | . . . . 1 . . . 3 . . . . . . . . . . . . . Detach . | . . . . . . . . . . . . . . . . . . . . . . Swap 34 | . 2 . 8 13 1 3 . 5 1 . . . . . . . . . . 1 . Drop 44 | . . . 6 10 2 . . 19 1 . . 2 . . . . . . 1 3 . Fire 1285 | . 69 44 95 83 23 66 10 277 94 31 15 . 47 7 5 2 2 60 14 120 221 Melee . | . . . . . . . . . . . . . . . . . . . . . . Ram . | . . . . . . . . . . . . . . . . . . . . . . Kick . | . . . . . . . . . . . . . . . . . . . . . . Crush 11 | . . . . . . . . . 2 . . . . 2 1 . . 2 . . 4 Escape Stasis 6 | . . . . . . . . . . . . . . . . . . . . . 6 Rewire 83 | . . . . . . . . . . 10 1 . 3 . 69 . . . . . . Trap . | . . . . . . . . . . . . . . . . . . . . . . Miscellaneous 640 | . 22 12 28 40 6 44 9 148 67 27 3 . 22 7 20 9 3 32 10 19 112 Route ------- -11/Scrapyard -10/Materials (discovered 4 exits: *Mat x3 / *Min) -10/Mines (discovered 3 exits: *Mat x2 / *Sub) -10/Subcaves (discovered 3 exits: *Mat x2 / *Rec) -8/Materials (discovered 3 exits: *Fac x3) -7/Factory (discovered 4 exits: [*Fac] / *Sto / Low x2) -7/Storage (discovered 2 exits: [*Fac] / *Rec) -7/Recycling (discovered 2 exits: *Fac / *Scr) -7/Scraptown (discovered 2 exits: *Fac x2) -5/Factory (discovered 4 exits: *Fac x2 / *Upp x2) -5/Upper Caves -5/Upper Caves (discovered 2 exits: *Fac / *Zhi) -5/Zhirov -4/Proximity Caves -4/Factory (discovered 6 exits: Res / Upp x2 / *Ext x2 / Arm) -4/Extension (discovered 3 exits: *Res x2 / *Cet) -4/Cetus (discovered 2 exits: *Res / *Arc) -4/Archives (discovered 2 exits: *Res / *Hub) -4/Hub_04(d) (discovered 2 exits: *Res x2) -3/Research (discovered 5 exits: *Res x3 / *Qua x2) -3/Quarantine -2/Research History --------- Turn | Location | Event 2 | -11/Scrapyard | Upgraded with Power slot (x1) 2 | -11/Scrapyard | Upgraded with Propulsion slot (x1) 2 | -11/Scrapyard | Upgraded with Utility slot (x1) 2 | -11/Scrapyard | Upgraded with Weapon slot (x1) 17 | -11/Scrapyard | Discovered new exit (range 16) 63 | -11/Scrapyard | Entered Materials 188 | -10/Materials | Discovered new exit (range 15) 311 | -10/Materials | Build established: Mutant 406 | -10/Materials | Discovered new exit (range 5) 478 | -10/Materials | Reached level 2 770 | -10/Materials | Discovered new exit (range 16) 842 | -10/Materials | Discovered new exit (range 13) 946 | -10/Materials | Entered Mines 948 | -10/Mines | Reached level 3 1037 | -10/Mines | Excavation squad dispatched 1037 | -10/Mines | A large section of the Mines collapsed 1287 | -10/Mines | Excavation squad dispatched 1521 | -10/Mines | Discovered new exit (range 5) 1559 | -10/Mines | Reached level 4 1575 | -10/Mines | Learned location of Storage (-7) 1644 | -10/Mines | Discovered new exit (range 3) 1714 | -10/Mines | Discovered new exit (range 3) 1721 | -10/Mines | Found the Drone Emporium 1737 | -10/Mines | Upgraded with Utility slot (x1) 1737 | -10/Mines | Found Prototype Device 1737 | -10/Mines | Identified Sensor Drone Bay 1746 | -10/Mines | Identified exit to Materials 1916 | -10/Mines | Identified exit to Subcaves 1919 | -10/Mines | Entered Subcaves 2204 | -10/Subcaves | Shifting Twisted Machinery released Sub. Monowheel 2693 | -10/Subcaves | Visited Clippyterm 2695 | -10/Subcaves | Learned location of 1 exit from Materials 2696 | -10/Subcaves | Identified exit to Recycling 2696 | -10/Subcaves | Identified exit to Materials 3154 | -10/Subcaves | Disturbed a concealed Subdweller 3540 | -10/Subcaves | Shifting Twisted Machinery released Mak. Thermal Plating 3734 | -10/Subcaves | Visited 4L-MR0's lab 3747 | -10/Subcaves | Reached level 5 3765 | -10/Subcaves | Upgraded with Propulsion slot (x2) 3766 | -10/Subcaves | Found Prototype Flight Unit 3766 | -10/Subcaves | Identified Flightbrick 3767 | -10/Subcaves | Attached Flightbrick, gained temporary slots: Utility x3 3921 | -10/Subcaves | Disturbed a concealed Subdweller 3950 | -10/Subcaves | Entered Materials 3951 | -8/Materials | Identified exit to Factory 3952 | -8/Materials | Reached level 6 3991 | -8/Materials | Reached level 7 4085 | -8/Materials | Garrison activated, responded to threat 4234 | -8/Materials | Upgraded with Weapon slot (x1) 4285 | -8/Materials | Reached level 8 4354 | -8/Materials | Destroyed 9 combat bots 4521 | -8/Materials | Reached level 9 4533 | -8/Materials | Build established: Hacker-Tank 4615 | -8/Materials | Discovered exit to Factory (range 13) 4627 | -8/Materials | Upgraded with Propulsion slot (x1) 4731 | -8/Materials | Discovered exit to Factory (range 16) 4900 | -8/Materials | Entered Factory 4900 | -7/Factory | Accompanied by 2 allies 4902 | -7/Factory | Reached level 10 5013 | -7/Factory | Identified exit to Storage 5013 | -7/Factory | Identified exit to Lower Caves 5036 | -7/Factory | Reached level 11 5221 | -7/Factory | Discovered new exit (range 9) 5833 | -7/Factory | Entered Storage 5833 | -7/Storage | Accompanied by 5 allies 5835 | -7/Storage | Reached level 12 5904 | -7/Storage | Reached level 13 6005 | -7/Storage | Assisted by bots powering up and referring to "LRC-V3" 6158 | -7/Storage | Used back door to open Recycling access 6326 | -7/Storage | Learned location of Armory (-4) 6385 | -7/Storage | Reached level 14 6462 | -7/Storage | Upgraded with Propulsion slot (x1) 6732 | -7/Storage | Build established: Commander-Sprinter 6765 | -7/Storage | Discovered new exit (range 12) 7211 | -7/Storage | Entered Recycling 7211 | -7/Recycling | Accompanied by 15 allies 7213 | -7/Recycling | Reached level 15 7409 | -7/Recycling | Discovered new exit (range 16) 7573 | -7/Recycling | Scanned before Scraplab entrance 7662 | -7/Recycling | Entered Scraplab 7664 | -7/Recycling | Discovered new exit (range 3) 7708 | -7/Recycling | Entered Scraptown 7708 | -7/Scraptown | Accompanied by 16 allies 7761 | -7/Scraptown | Visited IN-MT5's Study 7769 | -7/Scraptown | Visited Red Mages 7778 | -7/Scraptown | Visited Junk Repository 7781 | -7/Scraptown | Visited CR-KLE's Repair Center 7945 | -7/Scraptown | Discovered new exit (range 7) 7980 | -7/Scraptown | Visited Cyclists 8114 | -7/Scraptown | Attacked by Scraptown defenders 8165 | -7/Scraptown | Lost 7 allies 8306 | -7/Scraptown | Core integrity fell below 50% 8328 | -7/Scraptown | Core integrity fell below 20% 8342 | -7/Scraptown | Destroyed Triborg 8371 | -7/Scraptown | Found Tri-treads 8374 | -7/Scraptown | Found Tri-treads 8383 | -7/Scraptown | Found Prototype Ballistic Cannon 8383 | -7/Scraptown | Identified Siege Cannon 8388 | -7/Scraptown | Found Siege Articulator 8396 | -7/Scraptown | Upgraded with Utility slot (x3) 8401 | -7/Scraptown | Found Siege Articulator 8666 | -7/Scraptown | Build established: Scavenger-Tank 8693 | -7/Scraptown | Destroyed 7 combat bots 8815 | -7/Scraptown | Destroyed 10 combat bots 9060 | -7/Scraptown | Visited The Evicted 9734 | -7/Scraptown | Destroyed 8 combat bots 9880 | -7/Scraptown | Destroyed 13 combat bots 10015 | -7/Scraptown | Destroyed 7 combat bots 10221 | -7/Scraptown | Visited Chapter 10 10252 | -7/Scraptown | Visited Scrap Suit Storage 10279 | -7/Scraptown | Visited Abandonware Association 10297 | -7/Scraptown | Learned abandonware demo "REPAIR.EXE" 10297 | -7/Scraptown | Learned abandonware demo "TRNCOAT.EXE" 10329 | -7/Scraptown | Visited Science Testing Area 10352 | -7/Scraptown | Visited A0-MCA Data Center 10364 | -7/Scraptown | Found Prototype Processor 10364 | -7/Scraptown | Identified Expert System 10388 | -7/Scraptown | Visited Infowarlord's Domain 10406 | -7/Scraptown | Visited DA-N13 Charitable Foundation 10411 | -7/Scraptown | Found DCF Scrap (28 items) 10439 | -7/Scraptown | Visited Junk Repository 10483 | -7/Scraptown | Visited Derelict Rescue Squad 10505 | -7/Scraptown | Visited Analyses Database 10670 | -7/Scraptown | Build established: Scavenger-Gunner 10899 | -7/Scraptown | Discovered new exit (range 5) 11148 | -7/Scraptown | Entered Factory 11150 | -5/Factory | Reached level 16 11520 | -5/Factory | Reached level 17 11841 | -5/Factory | Reached level 18 11849 | -5/Factory | Discovered new exit (range 15) 12428 | -5/Factory | Expert System configures itself against Swarmer targets 12546 | -5/Factory | Reached level 19 12887 | -5/Factory | Reached level 20 13124 | -5/Factory | Discovered new exit (range 16) 13228 | -5/Factory | Discovered new exit (range 7) 13587 | -5/Factory | Fabricated IN-MT5's Pitchfork "Insurrection" (x1) 13614 | -5/Factory | Lost 4 allies 13848 | -5/Factory | First assault squad dispatched 13980 | -5/Factory | Reached level 21 14032 | -5/Factory | Destroyed 9 combat bots 14052 | -5/Factory | Identified exit to Upper Caves 14170 | -5/Factory | Entered Upper Caves 14300 | -5/Upper Caves | Reprogrammed and armed 51-6CN(k) 14409 | -5/Upper Caves | Learned Factory terminal intel 14499 | -5/Upper Caves | Discovered new exit (range 7) 14503 | -5/Upper Caves | Learned Factory trap positions 14509 | -5/Upper Caves | Identified exit to Upper Caves 14894 | -5/Upper Caves | Spotted B-75 Beast 14896 | -5/Upper Caves | Destroyed B-75 Beast 15244 | -5/Upper Caves | Attracted the attention of an 0b10 outpost 15246 | -5/Upper Caves | Reached level 22 15283 | -5/Upper Caves | Destroyed 7 combat bots 15496 | -5/Upper Caves | Attracted the attention of an 0b10 checkpoint 15781 | -5/Upper Caves | Entered another Upper Caves area 15781 | -5/Upper Caves | Accompanied by 2 allies 15830 | -5/Upper Caves | Spotted B-75 Beast 15830 | -5/Upper Caves | Destroyed B-75 Beast 15921 | -5/Upper Caves | Discovered new exit (range 14) 15944 | -5/Upper Caves | Identified exit to Factory 16306 | -5/Upper Caves | Discovered new exit (range 4) 16313 | -5/Upper Caves | Identified exit to Zhirov 16706 | -5/Upper Caves | Attracted the attention of an 0b10 checkpoint 16743 | -5/Upper Caves | Learned 12 Factory zone layouts 16862 | -5/Upper Caves | Upgraded with Utility slot (x2) 17067 | -5/Upper Caves | Entered Zhirov 17067 | -5/Zhirov | Accompanied by 1 ally 17068 | -5/Zhirov | Discovered new exit (range 4) 17069 | -5/Zhirov | Identified exit to Proximity Caves 17090 | -5/Zhirov | Met Zhirov 17126 | -5/Zhirov | Zhirov requested help retrieving the SGEMP Prototype 17163 | -5/Zhirov | Found Alien Artifact 17163 | -5/Zhirov | Identified Integrated Dissipator 17163 | -5/Zhirov | Installed Integrated Dissipator, increased core heat dissipation (+20) 17227 | -5/Zhirov | Learned location of Testing (-2) 17227 | -5/Zhirov | Learned location of Command (-1) 17276 | -5/Zhirov | Entered Proximity Caves 17276 | -4/Proximity Caves | Accompanied by 1 ally 17278 | -4/Proximity Caves | Reached level 23 17533 | -4/Proximity Caves | Attracted the attention of an 0b10 outpost 17576 | -4/Proximity Caves | Destroyed 7 combat bots 17618 | -4/Proximity Caves | Reached level 24 17648 | -4/Proximity Caves | Learned 4 Research zone layouts 17836 | -4/Proximity Caves | Spotted B-86 Titan 17874 | -4/Proximity Caves | Destroyed B-86 Titan 18500 | -4/Proximity Caves | Learned Research trap positions 18502 | -4/Proximity Caves | Discovered exit to Factory (range 5) 19044 | -4/Proximity Caves | Entered Factory 19044 | -4/Factory | Accompanied by 2 allies 19045 | -4/Factory | Identified exit to Upper Caves 19045 | -4/Factory | Identified exit to Research 19046 | -4/Factory | Loaded intel: 79 trap records 19047 | -4/Factory | Loaded intel: 28 terminal locations 19121 | -4/Factory | Reprogrammed and armed K-01 Serf 19149 | -4/Factory | Reached level 25 19298 | -4/Factory | Identified exit to Extension 19298 | -4/Factory | Identified exit to Armory 19398 | -4/Factory | Entered Extension 19398 | -4/Extension | Accompanied by 2 allies 19434 | -4/Extension | Reprogrammed and armed K-01 Serf 19437 | -4/Extension | Reprogrammed and armed K-01 Serf 19461 | -4/Extension | Reprogrammed and armed K-01 Serf 19518 | -4/Extension | Reprogrammed and armed K-01 Serf 19555 | -4/Extension | Reprogrammed and armed K-01 Serf 19556 | -4/Extension | Reprogrammed and armed K-01 Serf 19594 | -4/Extension | Build established: Hacker-Gunner 19663 | -4/Extension | Reprogrammed and armed K-01 Serf 19665 | -4/Extension | Reprogrammed and armed K-01 Serf 19683 | -4/Extension | Reprogrammed and armed K-01 Serf 19717 | -4/Extension | Reprogrammed and armed K-01 Serf 19740 | -4/Extension | Reprogrammed and armed K-01 Serf 19755 | -4/Extension | Reprogrammed and armed K-01 Serf 19761 | -4/Extension | Reprogrammed and armed K-01 Serf 19770 | -4/Extension | Reprogrammed and armed K-01 Serf 19786 | -4/Extension | Reprogrammed and armed K-01 Serf 19792 | -4/Extension | Reprogrammed and armed K-01 Serf 19817 | -4/Extension | Reprogrammed and armed K-01 Serf 20185 | -4/Extension | Spotted B-86 Titan 20186 | -4/Extension | Rescued a captive Derelict 20224 | -4/Extension | Allies destroyed B-86 Titan 20234 | -4/Extension | Spotted B-86 Titan 20242 | -4/Extension | Allies destroyed B-86 Titan 20262 | -4/Extension | Discovered exit to Research (range 3) 20267 | -4/Extension | Lost 5 allies 20308 | -4/Extension | Reprogrammed and armed K-01 Serf 20449 | -4/Extension | Rescued a captive Derelict 20486 | -4/Extension | Reached level 26 20519 | -4/Extension | Rescued A7 20601 | -4/Extension | Rescued a captive Derelict 20656 | -4/Extension | Lost 3 allies 20678 | -4/Extension | Discovered exit to Research (range 10) 20679 | -4/Extension | Discovered new exit (range 6) 20815 | -4/Extension | Entered Cetus 20815 | -4/Cetus | Accompanied by 28 allies (A7) 20820 | -4/Cetus | Acquired a Cetus Manufacturing Module code from A7 20826 | -4/Cetus | Spotted Cetus Guard 20827 | -4/Cetus | Spotted Cetus Guard 20828 | -4/Cetus | Spotted Cetus Guard 20828 | -4/Cetus | Spotted Cetus Guard 20832 | -4/Cetus | Destroyed Cetus Guard 20834 | -4/Cetus | Destroyed Cetus Guard 20840 | -4/Cetus | Allies destroyed Cetus Guard 20846 | -4/Cetus | Allies destroyed Cetus Guard 20866 | -4/Cetus | Build established: Commander-Gunner 20911 | -4/Cetus | Started Cetus Manufacturing Module 20926 | -4/Cetus | Escorted A7 to Cetus Mainframe 20936 | -4/Cetus | Manufactured an Enhanced Grunt 20961 | -4/Cetus | Manufactured an Enhanced Grunt 20986 | -4/Cetus | Manufactured an Enhanced Grunt 21011 | -4/Cetus | Manufactured an Enhanced Grunt 21016 | -4/Cetus | Discovered new exit (range 15) 21036 | -4/Cetus | Manufactured an Enhanced Grunt 21038 | -4/Cetus | Spotted Cetus Guard 21048 | -4/Cetus | Spotted Cetus Guard 21051 | -4/Cetus | Spotted Cetus Guard 21057 | -4/Cetus | Allies destroyed Cetus Guard 21060 | -4/Cetus | Allies destroyed Cetus Guard 21060 | -4/Cetus | Allies destroyed Cetus Guard 21073 | -4/Cetus | Discovered exit to Research (range 16) 21082 | -4/Cetus | Met Revision 17 21086 | -4/Cetus | Lost 3 allies 21141 | -4/Cetus | Entered Archives 21141 | -4/Archives | Accompanied by 24 allies (A7) 21147 | -4/Archives | Received a hacking code to weaken MAIN.C 21186 | -4/Archives | Unable to access archive contents 21194 | -4/Archives | Discovered exit to Research (range 15) 21204 | -4/Archives | Discovered new exit (range 15) 21223 | -4/Archives | Identified exit to Hub_04(d) 21288 | -4/Archives | Entered Hub_04(d) 21288 | -4/Hub_04(d) | Accompanied by 22 allies 21290 | -4/Hub_04(d) | Reached level 27 21299 | -4/Hub_04(d) | Discovered exit to Research (range 9) 21336 | -4/Hub_04(d) | Garrison activated, responded to threat 21396 | -4/Hub_04(d) | Lost 13 allies 21590 | -4/Hub_04(d) | Spotted B-86 Titan 21607 | -4/Hub_04(d) | Destroyed B-86 Titan 21626 | -4/Hub_04(d) | Build established: Hacker-Gunner 21782 | -4/Hub_04(d) | Discovered exit to Research (range 6) 21871 | -4/Hub_04(d) | Network Hub disabled 21881 | -4/Hub_04(d) | Spotted Lightning 21881 | -4/Hub_04(d) | Spotted Lightning 21891 | -4/Hub_04(d) | Destroyed Lightning 21895 | -4/Hub_04(d) | Destroyed Lightning 21897 | -4/Hub_04(d) | Murdered 4 allies 21926 | -4/Hub_04(d) | Spotted Lightning 21933 | -4/Hub_04(d) | Destroyed Lightning 22020 | -4/Hub_04(d) | Entered Research 22022 | -3/Research | Loaded intel: 66 trap records 22022 | -3/Research | Reached level 28 22075 | -3/Research | Spotted B-86 Titan 22083 | -3/Research | Destroyed B-86 Titan 22220 | -3/Research | Revision forces began assault on 0b10 22263 | -3/Research | Identified exit to Quarantine 22263 | -3/Research | Identified exit to Research 22263 | -3/Research | Central database locked down 22267 | -3/Research | Met up with Revision 17++ 22664 | -3/Research | Fabricated IN-MT5's Pitchfork "Insurrection" (x1) 22695 | -3/Research | Reprogrammed and armed K-01 Serf 22720 | -3/Research | Research terminal network offline 22793 | -3/Research | Reprogrammed and armed K-01 Serf 22811 | -3/Research | Reprogrammed and armed K-01 Serf 22852 | -3/Research | Upgraded with Power slot (x1) 22883 | -3/Research | Reached level 29 23071 | -3/Research | Entered Quarantine 23071 | -3/Quarantine | Accompanied by 3 allies 23113 | -3/Quarantine | Upgraded with Utility slot (x1) 23115 | -3/Quarantine | Found Alien Artifact 23115 | -3/Quarantine | Identified Core Reset Matrix 23115 | -3/Quarantine | Used Core Reset Matrix 23119 | -3/Quarantine | Detected hypermatrix surge 23119 | -3/Quarantine | Sensed 13 artifacts in vicinity 23143 | -3/Quarantine | Reprogrammed and armed K-01 Serf 23163 | -3/Quarantine | Reprogrammed and armed K-01 Serf 23253 | -3/Quarantine | Met incapacitated Sigix Warrior 23253 | -3/Quarantine | Lockdown squad dispatched 23260 | -3/Quarantine | Acquired the access code to the Sigix quarantine chamber 23263 | -3/Quarantine | Unlocked Sigix quarantine chamber 23267 | -3/Quarantine | Found Sigix Containment Pod 23311 | -3/Quarantine | Found Subatomic Replicator 23321 | -3/Quarantine | Spotted Lightning 23345 | -3/Quarantine | Spotted Lightning 23353 | -3/Quarantine | Destroyed Lightning 23355 | -3/Quarantine | Spotted Lightning 23367 | -3/Quarantine | Lost 5 allies 23373 | -3/Quarantine | Destroyed Lightning 23389 | -3/Quarantine | Destroyed Lightning 23410 | -3/Quarantine | Destroyed 7 combat bots 23564 | -3/Quarantine | Discovered exit to Research (range 15) 23618 | -3/Quarantine | Reached level 30 23666 | -3/Quarantine | Cryocooling Duct disabled 23681 | -3/Quarantine | Ambient heat levels rising (+20) 23681 | -3/Quarantine | Non-combat units ordered to evacuate 23815 | -3/Quarantine | Garrison activated, responded to threat 23875 | -3/Quarantine | Cryocooling Duct disabled 23890 | -3/Quarantine | Ambient heat levels rising (+20) 23890 | -3/Quarantine | Combat units ordered to evacuate 23990 | -3/Quarantine | Quarantine Guard activated 24105 | -3/Quarantine | Spotted Quarantine Guard 24121 | -3/Quarantine | Destroyed Quarantine Guard 24173 | -3/Quarantine | Spotted Quarantine Guard 24201 | -3/Quarantine | Destroyed Quarantine Guard 24241 | -3/Quarantine | Spotted Quarantine Guard 24257 | -3/Quarantine | Destroyed Quarantine Guard 24285 | -3/Quarantine | Spotted Quarantine Guard 24306 | -3/Quarantine | Expert System configures itself against Quarantine Guard targets 24306 | -3/Quarantine | Destroyed Quarantine Guard 24358 | -3/Quarantine | Spotted Quarantine Guard 24383 | -3/Quarantine | Spotted Quarantine Guard 24389 | -3/Quarantine | Destroyed Quarantine Guard 24399 | -3/Quarantine | Destroyed Quarantine Guard 24402 | -3/Quarantine | Spotted Quarantine Guard 24405 | -3/Quarantine | Core integrity fell below 50% 24405 | -3/Quarantine | Destroyed Quarantine Guard 24426 | -3/Quarantine | Destroyed 7 combat bots 24452 | -3/Quarantine | Spotted Quarantine Guard 24464 | -3/Quarantine | Destroyed Quarantine Guard 24481 | -3/Quarantine | Spotted Quarantine Guard 24518 | -3/Quarantine | Destroyed Quarantine Guard 24569 | -3/Quarantine | Entered Research 24571 | -2/Research | Reached level 31 24839 | -2/Research | Garrison activated, responded to threat 25009 | -2/Research | Spotted B-90 Cyclops 25037 | -2/Research | Destroyed B-90 Cyclops 25069 | -2/Research | First assault squad dispatched 25355 | -2/Research | Reached level 32 25398 | -2/Research | Spotted B-90 Cyclops 25402 | -2/Research | Destroyed 7 combat bots 25415 | -2/Research | Destroyed B-90 Cyclops 25588 | -2/Research | Destroyed 8 combat bots 25657 | -2/Research | High security lockdown imminent 25737 | -2/Research | High security lockdown engaged 25831 | -2/Research | Core integrity fell below 50% 25861 | -2/Research | Destroyed 12 combat bots 25885 | -2/Research | Reached level 33 25918 | -2/Research | Scanned by Researcher 25919 | -2/Research | Spotted Investigator 25925 | -2/Research | Destroyed Investigator 25945 | -2/Research | Emitted hypermatrix ping 25950 | -2/Research | Assembled emerged from beneath the floor 25965 | -2/Research | Spotted Executioner 25966 | -2/Research | Destroyed 15 combat bots 25970 | -2/Research | Core integrity fell below 20% 25971 | -2/Research | System corruption reached 10% 25981 | -2/Research | Destroyed Executioner 26016 | -2/Research | Lost 6 allies 26028 | -2/Research | Destroyed 8 combat bots 26075 | -2/Research | Spotted Striker 26075 | -2/Research | Spotted Executioner 26086 | -2/Research | Destroyed Striker 26091 | -2/Research | Crushed by falling debris 26091 | -2/Research | Spotted Executioner 26096 | -2/Research | Spotted Investigator 26100 | -2/Research | Destroyed Investigator 26110 | -2/Research | Destroyed by Executioner with Helical Railgun Last Messages --------------- 26102_ Executioner knocked back. 26103_ M-36 Artificer repairs G-73 Enforcer. 26104_ Siege Slug penetrates Executioner. 26104_ Executioner Prototype Ballistic Gun blasted off. 26104_ Executioner knocked back. 26105_ Penetrated by Slug. 26105_ Slug penetrates Wall. 26106_ Penetrated by Slug. 26106_ Siege Slug penetrates Executioner. 26106_ Executioner knocked back. 26106_ Siege Slug penetrates Executioner. 26108_ Slug penetrates Wall. 26108_ Penetrated by Slug. 26108_ Siege Slug penetrates Executioner. 26108_ Executioner knocked back. 26108_ Siege Slug penetrates Executioner. 26110_ System corrupted: Component data lost. 26110_ Penetrated by Slug. [Achievement: I Think I Know What's Going On] Map ----- +----------------------------------------------------+ | ?????????????????????????????????????????????????? | | ?????????????????????????????????????????????????? | | ?????????????????????????????????????????????????? | | ?????????????????????????????????????????????????? | | ?????????????????????????????????????????????????? | | ?????????????????????????????????????????????????? | | ?????????????????????????????????????????????????? | | ?????????????????????????????????????????????????? | | ?????????????????????????????????????????????????? | | ?????????????????????????????????????????????????? | | ??????????????????????? ?????????????????????????? | | ????????????????????? ; ????? ???????????????????? | | ??????????????????????; ???? ????##?????????????? | | ??????????????????????; ???? ???##############??? | | ??????????????????????; ??? ???# #??? | | ??????????????????????; ??? ????# #??? | | ??????????????????????# ?? ????# #??? | | ??????????????????????# ?? ????# #??? | | ???????????????????#??#;;??;#????# #??? | | ???????????????????# ?# ?# ?????# #??? | | ???????????????????# # # ?????# #??? | | ???????????????????# #;;;;###???# * #??? | | ???????????????????? # #???# #??? | | ?????????????????????? !%# #??## =!#??? | | ????????????????##?????# %%#"###"" [#??? | | ????????????????# #????#[@=# "" # % % #??? | | ?????????????????# #???#;%%# """"###+###+##??? | | ??????????????????# #??#%!p! % % =#???? | | ???????????????????# #?#|%%=! %#???? | | ????????????????????#"##Egg= *%#???? | | ?????????????????????# [m!=% #???? | | ?????????????????????# %!% % #???? | | ???????????????????#####/%E] [ #???? | | ?????#####+#########""#!=*!= [ ##### | | ???? ! %%%%%[/=%% | | ???? %% = %!=[g%g!%*=!! | | ???? ==% =%!%=%==%%%%/%/ | | ???? "% = ![%%=%=![%%% %!! | | ????????##"#####!%%==%;;%;#[%*!;#"############+### | | ?????????? %%%*!=%% [[ =% "## # | | ?????????# %%"%%%%*% ==/ * !%%"## # | | ?????????# % " !" #### !%" *%" #=# "" | | ????????# " %" #??# = ="""%%###=# "" | | ??????? # [!!###??# R"" ###%# "" | | ????? !==%[#????# """ "##%#[ | | ????? "% |[!![ #????# #"#"#% | | ?????? #+%"""#" *|[#????# % =+ %!+ % "" | | ?????? ?#"]#"#""%%%%#????###########""=#=* "" | | ?????????" % =* #??????????????##"/" "" | | ???????? " #????????????????#%/= | +----------------------------------------------------+ Best States ------------- Heat Dissipation 123 Energy Generation 65 Energy Capacity 1700 Matter Stores 500 Matter Capacity 500 Sight Range 16 Robot Scan Range 6 Terrain Scan Density 10 ECM Strength 2 Jamming Range 12 Armor Coverage 900 Resistance: KI 40 Resistance: TH 40 Resistance: EX 40 Resistance: EM 20 Resistance: I 20 Resistance: S 20 Resistance: P 20 Evasion (%) 64 Target Analysis 12 Core Analysis 6 Recoil Reduction 6 Offensive Hacking 30 Defensive Hacking 20 Item Schematics ----------------- Imp. Matter Neutralizer | -3/Quarantine | Archive Cld. Antigrav System | -3/Quarantine | Archive Robot Schematics ------------------ H-77 Assassin | -3/Quarantine | Archive A-15 Conveyor | -3/Quarantine | Archive R-10 Processor | -3/Quarantine | Archive Fabricated ------------ IN-MT5's Pitchfork "Insurrection" | x1 | -5/Factory IN-MT5's Pitchfork "Insurrection" | x1 | -3/Research Alien Tech Used ----------------- Integrated Dissipator Core Reset Matrix Achievements -------------- I Think I Know What's Going On Challenges ------------ None RPGLIKE | -11 -10 -10 -10 -8 -7 -7 -7 -7 -5 -5 -5 -5 -4 -4 -4 -4 -4 -4 -3 -3 -2 --------- Run | Yrd Mat Min Sub Mat Fac Sto Rec Scr Fac Upp Upp Zhi Pro Fac Ext Cet Arc Hub Res Qua Res Levels Raised 32 | . 1 2 1 4 2 3 1 . 6 1 . . 2 1 1 . . 1 2 1 3 XP Earned 52683 | 4000 2775 1900 1607 6673 3330 4298 873 276 8896 1196 518 220 2391 1332 1620 596 269 1579 1794 2068 4472 XP Spent 51795 | 2000 3250 800 3700 4700 1500 2550 . 6475 5450 . 4300 . . 4500 . . . . 2600 3410 6560 Upgrades 112 | 4 15 1 5 11 3 3 . 23 11 . 2 . . 6 . . . . 4 4 20 Power Slot 2 | 1 . . . . . . . . . . . . . . . . . . 1 . . Propulsion Slot 5 | 1 . . 2 1 . 1 . . . . . . . . . . . . . . . Utility Slot 8 | 1 . 1 . . . . . 3 . . 2 . . . . . . . . 1 . Weapon Slot 2 | 1 . . . 1 . . . . . . . . . . . . . . . . . Core Integrity 34 | . . . . . . . . 16 . . . . . . . . . . . . 18 Heat Dissipation 13 | . 5 . . 5 . . . . . . . . . . . . . . . 3 . Energy Generation 2 | . . . . . . 2 . . . . . . . . . . . . . . . Matter Storage 4 | . . . . . . . . 2 2 . . . . . . . . . . . . Mass Support 3 | . . . 3 . . . . . . . . . . . . . . . . . . Inventory Capacity 4 | . 2 . . 1 . . . . 1 . . . . . . . . . . . . Sensor Range 3 | . . . . . . . . 1 2 . . . . . . . . . . . . Ranged Accuracy 6 | . . . . . 3 . . . . . . . . 1 . . . . . . 2 Hack Attack % 4 | . . . . 2 . . . . . . . . . 2 . . . . . . . Hack Defense % 4 | . . . . 1 . . . . . . . . . 3 . . . . . . . KI Resistance % 4 | . 2 . . . . . . . 1 . . . . . . . . . 1 . . TH Resistance % 4 | . 2 . . . . . . . 1 . . . . . . . . . 1 . . EX Resistance % 4 | . 2 . . . . . . . 1 . . . . . . . . . 1 . . KI Damage % 4 | . . . . . . . . 1 3 . . . . . . . . . . . . TH Damage % 2 | . 2 . . . . . . . . . . . . . . . . . . . . Protomatter Created 7860 | . 251 184 192 472 41 515 184 1915 557 320 173 . 164 158 . 55 72 473 140 408 1586 Integrity Restored 13038 | . 370 201 560 733 123 763 118 3229 1358 462 50 . 488 153 420 156 50 689 212 416 2487 Core 10328 | . 288 160 528 509 123 518 82 2371 897 295 . . 453 153 175 123 41 628 97 400 2487 Parts 2710 | . 82 41 32 224 . 245 36 858 461 167 50 . 35 . 245 33 9 61 115 16 . Protomatter Decayed 6911 | . 60 97 2 296 . 241 135 549 239 238 249 . . . 493 119 121 578 2769 183 542 Game ------ Seed TractorAmuletHumpback Manual? 0 Play Time 05:02:17 Cumulative 96.8 hours Start 2024.09.12 @ 18:32:23 End 2024.09.14 @ 12:15:32 Sessions 5 Manual Loads 0 Difficulty Adventurer Special Mode Winter2019/RPGLIKE Game No. 60 Rogue 0 Adventurer 60 Explorer 0 Win Type - Total 4 Types 2/0/1/1/0/0/0/0/0 Lore% 51 Gallery% 52 Achievement% 68 Wizard Run 0 Options --------- Layout 2 ASCII 0 Keyboard 0 Movement Numpad Keybinds 0 Fullscreen 2 Font 24/Smallcaps Map View 50x44 Zoom Use 0% Tactical HUD 1 Map Filters NONE Filters NONE Steam 1 RUN: 3277591a-f275-4b5e-84b4-dfefc5e55bf3